bitfinex/quotes_ETHUSD_20220113
["timestamp","ask_amount","ask_price","bid_price","bid_amount"]
[1642075754401,2.79696472,3354.1,3353.7,1.49063]
[1642075754602,1.79696472,3354.1,3353.8,0.00511581]
[1642075754902,1.48512973,3354.0,3353.8,0.00511581]
[1642075755101,2.34062973,3354.0,3353.8,0.00511581]
[1642075755961,4.33693791,3354.0,3353.8,0.00511581]
[1642075756165,4.33693791,3354.0,3353.2,0.1192]
[1642075756166,3.7,3353.8,3353.2,0.1192]
[1642075756363,20.22252973,3354.0,3351.9,3.1399]
[1642075756560,5.6498,3353.9,3353.3,0.00284212]
[1642075756761,5.8988,3353.9,3353.3,0.00284212]
[1642075756965,1.27501267,3352.6,3352.1,0.0096632]
[1642075757165,0.7311,3353.0,3352.1,0.0096632]
[1642075757362,0.01232172,3352.9,3352.1,0.0096632]
[1642075757561,0.7455499,3353.6,3352.4,0.74554]
[1642075757562,2.0,3353.5,3352.4,0.74554]
[1642075757764,2.0,3353.5,3352.0,2.23665]
[1642075757962,2.0,3353.5,3352.5,0.0073895]
[1642075757963,0.74558,3353.4,3352.5,0.0073895]
[1642075758162,0.74558,3353.4,3352.1,0.0096632]
[1642075758368,3.55702037,3353.3,3352.1,0.0096632]
[1642075758564,1.1838,3353.3,3352.6,1.49108]
[1642075758764,3.6035,3353.7,3352.6,1.49108]
[1642075758965,1.45547749,3353.2,3352.7,0.00625266]
[1642075759597,6.9555,3353.8,3352.7,0.00625266]
[1642075759797,6.9555,3353.8,3352.9,0.74546]
[1642075759996,7.2555,3353.8,3352.9,0.74546]
[1642075760199,7.2555,3353.8,3353.0,0.00454739]
[1642075760399,7.2555,3353.8,3353.1,0.03337849]
[1642075760400,1.4552,3353.8,3353.1,0.03337849]
[1642075760598,1.4552,3353.8,3353.0,0.00454739]
[1642075760599,2.35489569,3353.7,3353.0,0.00454739]
[1642075760798,2.35489569,3353.7,3353.2,0.00341054]
[1642075761003,4.69634305,3353.7,3353.3,0.7454]
[1642075761406,4.69634305,3353.7,3353.4,0.00227369]
[1642075761604,0.74551,3353.6,3353.4,0.00227369]
[1642075762408,5.55917283,3353.5,3353.4,0.00227369]
[1642075762604,5.85917283,3353.5,3353.4,0.00227369]
[1642075762806,0.74562,3353.2,3352.7,0.00625266]
[1642075763105,0.745633,3353.0,3352.7,0.00625266]
[1642075763347,1.25134621,3352.9,3352.8,0.74558]
[1642075763741,1.55134621,3352.9,3352.8,0.75126423]
[1642075763941,1.39142033,3353.1,3352.8,0.75126423]
[1642075764346,1.39142033,3353.1,3352.9,0.00511581]
[1642075765646,1.30910022,3353.2,3352.9,0.00511581]
[1642075765846,3.28692024,3353.2,3352.9,0.00511581]
[1642075766047,1.30910022,3353.2,3352.9,0.00511581]
[1642075766449,2.30910022,3353.2,3352.9,0.00511581]
[1642075766648,4.33390439,3353.2,3352.9,0.00511581]
[1642075766848,1.30910022,3353.2,3352.8,0.74561]
[1642075767098,2.30910022,3353.2,3352.9,0.00511581]
[1642075767301,2.60910022,3353.2,3352.9,0.00511581]
[1642075767699,1.60910022,3353.2,3352.9,0.00511581]
[1642075769002,0.7456162,3353.1,3352.9,0.00511581]
[1642075770303,0.7456162,3353.1,3353.0,2.56141891]
[1642075770705,0.7456162,3353.1,3353.0,2.5659663]
[1642075771160,2.70491852,3353.1,3353.0,2.5659663]
[1642075772361,0.7456162,3353.1,3353.0,2.5659663]
[1642075777003,18.2756162,3353.1,3353.0,2.5659663]
[1642075777406,19.2756162,3353.1,3353.0,2.5659663]
[1642075779547,19.2756162,3353.1,3351.9,1.46249956]
[1642075779548,2.2374611,3352.4,3351.9,1.46249956]
[1642075779849,19.0216407,3352.4,3352.0,0.00568423]
[1642075780048,1.78296897,3352.3,3352.0,0.00568423]
[1642075780251,1.78296897,3352.3,3351.8,1.39720423]
[1642075780252,0.3,3352.3,3351.8,1.39720423]
[1642075780448,0.00113685,3352.2,3351.8,1.39720423]
[1642075780849,1.19165377,3352.1,3351.8,1.39720423]
[1642075782701,17.53,3352.3,3351.8,1.39720423]
[1642075782903,19.02808633,3352.2,3351.9,0.00170527]
[1642075783401,19.02808633,3352.2,3351.8,0.0022737]
[1642075783802,19.77389923,3352.2,3351.8,0.0022737]
[1642075784005,1.4918689,3352.0,3351.7,0.00284212]
[1642075784203,17.53,3351.9,3351.7,0.00284212]
[1642075784403,18.256,3351.9,3351.7,0.00284212]
[1642075784803,1.2610667,3351.8,3351.7,0.00284212]
[1642075785202,19.7910667,3351.8,3351.7,0.00284212]
[1642075785404,19.7910667,3351.8,3351.6,0.00341054]
[1642075785602,17.53,3351.7,3351.6,0.00341054]
[1642075785852,17.83,3351.7,3351.6,0.00341054]
[1642075786053,18.83,3351.7,3351.6,0.00341054]
[1642075787351,1.30675389,3351.6,3350.9,0.00738951]
[1642075787550,1.53050038,3351.1,3350.9,0.00738951]
[1642075787750,1.10650876,3351.0,3350.9,0.00738951]
[1642075788151,0.426,3351.5,3350.9,0.00738951]
[1642075788354,0.426,3351.5,3351.0,0.74603]
[1642075788553,17.53,3351.4,3351.0,0.74603]
[1642075788754,0.3,3351.5,3351.1,0.00625266]
[1642075788953,0.7460346,3351.3,3351.1,0.00625266]
[1642075789154,2.63482204,3351.8,3351.1,0.00625266]
[1642075789354,2.63482204,3351.8,3350.9,2.00738951]
[1642075789617,2.63482204,3351.8,3351.0,0.00682108]
[1642075790418,0.00518766,3351.7,3351.2,0.74598]
[1642075790621,0.3,3351.7,3351.2,0.74598]
[1642075790822,1.3,3351.7,3351.3,0.00511581]
[1642075791024,0.03830658,3351.4,3351.3,0.00511581]
[1642075791225,0.03830658,3351.4,3351.2,0.00568424]
[1642075791423,0.78425998,3351.4,3351.2,0.00568424]
[1642075791624,0.78425998,3351.4,3351.3,0.74591]
[1642075792025,0.78425998,3351.4,3351.3,0.00511581]
[1642075792425,0.78425998,3351.4,3351.2,0.00568424]
[1642075793025,2.24284141,3351.4,3351.2,0.00568424]
[1642075793227,0.78425998,3351.4,3351.2,0.00568424]
[1642075793473,0.78425998,3351.4,3351.0,0.00682108]
[1642075793678,1.32393095,3351.2,3351.0,0.00682108]
[1642075793872,2.06993765,3351.2,3351.0,0.00682108]
[1642075794071,2.06993765,3351.2,3350.8,0.00795793]
[1642075794675,2.06993765,3351.2,3351.1,0.74601]
[1642075795073,2.06993765,3351.2,3351.1,0.75226266]
[1642075795984,0.03830658,3351.4,3351.1,2.75226266]
[1642075796380,0.03830658,3351.4,3351.2,0.00568424]
[1642075796581,0.03830658,3351.4,3351.3,5.49578]
[1642075796779,5.6323,3352.6,3351.9,1.49143]
[1642075796980,1.20933843,3352.2,3351.9,1.49143]
[1642075797200,1.20933843,3352.2,3352.0,0.00113685]
[1642075798404,1.20933843,3352.2,3352.0,0.74685685]
[1642075798602,0.00170527,3352.5,3352.1,0.02213628]
[1642075798802,0.00170527,3352.5,3352.2,1.49108]
[1642075799001,0.00113684,3352.4,3352.2,1.49108]
[1642075799401,0.00397896,3352.9,3352.2,1.49108]
[1642075799605,1.39035505,3352.8,3352.2,1.49108]
[1642075799802,1.39376559,3352.8,3352.2,1.49108]
[1642075800002,8.5554,3353.6,3352.2,1.49108]
[1642075800003,0.00284211,3352.7,3352.3,0.74554]
[1642075800403,0.00227369,3352.6,3352.3,0.74554]
[1642075800856,0.0096632,3353.9,3352.3,3.30712085]
[1642075801057,1.13756128,3353.0,3352.3,5.30712085]
[1642075801253,1.13756128,3353.0,3352.3,3.30712085]
[1642075801453,0.00397896,3352.9,3352.3,3.30712085]
[1642075801653,0.00397896,3352.9,3352.3,2.23231449]
[1642075801854,0.00341054,3352.8,3352.3,2.23231449]
[1642075802056,17.53341054,3352.8,3352.3,1.48677449]
[1642075802254,0.7457463,3352.6,3352.3,1.48677449]
[1642075802454,1.96437823,3352.5,3352.3,1.48677449]
[1642075802655,1.96437823,3352.5,3352.0,0.00113685]
[1642075802656,4.21979891,3352.5,3352.4,2.56158085]
[1642075802955,4.96560891,3352.5,3352.4,2.56158085]
[1642075803156,5.26560891,3352.5,3352.4,2.56158085]
[1642075803357,5.26560891,3352.5,3352.4,2.00258085]
[1642075803558,0.3,3352.4,3352.0,0.00113685]
[1642075803756,0.7458623,3352.3,3352.0,0.00113685]
[1642075803957,0.9736623,3352.3,3352.0,0.00113685]
[1642075804156,0.3,3352.2,3352.0,0.00113685]
[1642075804610,1.20328201,3352.1,3352.0,0.00113685]
[1642075805409,0.7458944,3351.9,3351.6,0.00341054]
[1642075805610,0.3,3351.8,3351.6,0.00341054]
[1642075806317,0.3,3351.8,3351.6,0.74924054]
[1642075806714,0.3,3351.8,3351.7,0.00284212]
[1642075809455,0.29766461,3351.8,3351.7,0.00284212]
[1642075809859,0.29766461,3351.8,3351.6,0.00341054]
[1642075810257,0.29766461,3351.8,3351.5,0.00397897]
[1642075810457,1.04351681,3351.8,3351.5,0.00397897]
[1642075811061,0.3,3351.7,3351.5,0.00397897]
[1642075811473,0.3,3351.7,3351.5,0.74988897]
[1642075811862,0.3,3351.7,3351.6,0.00341054]
[1642075813102,0.3,3351.8,3351.6,0.00341054]
[1642075813702,0.3,3351.8,3351.6,1.49018503]
[1642075814107,0.3,3351.8,3351.7,0.00284212]
[1642075814304,0.7457602,3352.1,3351.7,0.00284212]
[1642075814503,0.43827012,3352.2,3351.8,0.77335368]
[1642075814902,0.43827012,3352.2,3351.8,0.74576]
[1642075815603,2.01014638,3352.2,3351.9,1.48677449]
[1642075815861,2.01014638,3352.2,3352.0,0.74573]
[1642075816060,0.73827012,3352.2,3352.0,0.74686685]
[1642075817264,0.3,3352.2,3352.0,0.74686685]
[1642075817461,1.62388642,3352.2,3352.0,0.74686685]
[1642075817761,1.62388642,3352.2,3352.0,2.23364134]
[1642075818461,1.62388642,3352.2,3352.0,0.00113685]
[1642075819062,1.26649307,3352.1,3352.0,0.00113685]
[1642075819463,2.26649307,3352.1,3352.0,0.00113685]
[1642075819702,1.0,3352.1,3352.0,0.00113685]
[1642075820106,1.62388642,3352.2,3352.0,0.00113685]
[1642075820909,19.15388642,3352.2,3352.0,0.00113685]
[1642075821108,1.0,3352.1,3352.0,0.00113685]
[1642075821308,19.90814696,3352.1,3352.0,0.00113685]
[1642075822112,19.90814696,3352.1,3351.7,0.00284212]
[1642075822410,1.4917767,3352.0,3351.7,0.00284212]
[1642075822610,0.3,3351.9,3351.7,1.48961661]
[1642075822908,0.3,3351.9,3351.8,0.0022737]
[1642075824153,0.3,3351.9,3351.8,1.78904819]
[1642075825553,0.3,3351.9,3351.8,0.3022737]
[1642075825755,0.3,3351.9,3351.8,2.86435629]
[1642075825957,1.4917767,3352.0,3351.8,2.56435629]
[1642075826160,1.4917767,3352.0,3351.8,2.86435629]
[1642075827210,0.3,3351.9,3351.8,2.56435629]
[1642075827407,0.3,3351.9,3351.8,0.0022737]
[1642075827607,20.75533081,3351.9,3351.8,0.0022737]
[1642075827809,20.75533081,3351.9,3351.7,0.00284212]
[1642075828012,1.91911305,3351.8,3351.7,0.00284212]
[1642075828411,19.44911305,3351.8,3351.7,0.00284212]
[1642075828610,20.44911305,3351.8,3351.5,0.00397897]
[1642075828810,0.74597,3351.7,3351.5,0.00397897]
[1642075829010,1.40276884,3351.6,3351.5,0.00397897]
[1642075829610,1.40276884,3351.6,3351.4,0.00454739]
[1642075830010,0.3,3351.5,3351.4,0.00454739]
[1642075831556,1.76923271,3351.5,3351.4,0.00454739]
[1642075832057,1.76923271,3351.5,3351.4,2.19829673]
[1642075832058,2.76923271,3351.5,3351.4,2.19829673]
[1642075832859,6.19392198,3351.5,3351.4,2.19829673]
[1642075833660,4.25803271,3351.5,3351.4,2.19829673]
[1642075833859,21.78803271,3351.5,3351.4,0.00454739]
[1642075834259,0.74614,3351.3,3351.0,2.150002]
[1642075834459,1.99168568,3351.2,3351.0,2.150002]
[1642075834710,17.53,3351.1,3351.0,2.150002]
[1642075834911,17.83,3351.1,3350.7,2.87711392]
[1642075835114,2.53220782,3351.0,3350.5,2.87711392]
[1642075835311,4.4831379,3351.0,3350.8,0.00170527]
[1642075835513,5.53303365,3351.0,3350.8,0.00170527]
[1642075835711,1.94770408,3350.9,3350.8,0.00170527]
[1642075835922,2.69383408,3350.9,3350.8,0.00170527]
[1642075836119,3.69383408,3350.9,3350.8,0.00170527]
[1642075836519,1.21918235,3350.8,3350.4,0.00397897]
[1642075836718,0.7461597,3350.7,3350.4,0.00397897]
[1642075836920,1.0461597,3350.7,3350.4,0.00397897]
[1642075837320,1.7923197,3350.7,3350.4,0.00397897]
[1642075837622,1.0461597,3350.7,3350.4,0.75009897]
[1642075838020,1.0461597,3350.7,3350.5,0.00341054]
[1642075838457,0.74617,3350.6,3350.3,0.00454739]
[1642075838657,0.7461569,3350.5,3350.3,0.00454739]
[1642075838859,0.9961569,3350.5,3350.3,0.00454739]
[1642075839058,0.9961569,3350.5,3350.3,2.88166131]
[1642075839259,0.9961569,3350.5,3350.3,3.42779131]
[1642075839857,3.71150175,3350.8,3350.3,3.42779131]
[1642075840264,0.74839369,3350.7,3350.3,3.42779131]
[1642075840460,0.7461569,3350.5,3350.3,3.42779131]
[1642075841262,1.0461569,3350.5,3350.3,3.42779131]
[1642075841463,3.7601,3351.3,3350.4,3.14961376]
[1642075841666,1.0,3351.2,3350.8,0.746]
[1642075841863,4.44374045,3351.5,3350.8,0.746]
[1642075841864,0.00170527,3350.9,3350.8,0.746]
[1642075842324,1.40509551,3351.2,3350.8,0.746]
[1642075842523,2.15115551,3351.2,3350.8,0.746]
[1642075842725,1.26991886,3351.0,3350.8,0.746]
[1642075843123,2.31595326,3351.0,3350.6,1.492]
[1642075843523,1.26991886,3351.0,3350.6,1.492]
[1642075843723,1.26991886,3351.0,3350.9,2.56245152]
[1642075844129,1.27219256,3351.0,3350.9,2.56245152]
[1642075844728,1.57219256,3351.0,3350.7,2.51245152]
[1642075844928,1.57219256,3351.0,3350.9,0.74594]
[1642075845729,1.57219256,3351.0,3350.9,2.98094976]
[1642075846963,1.57219256,3351.0,3350.9,3.45957761]
[1642075847362,1.57219256,3351.0,3350.9,2.71363761]
[1642075847563,1.57219256,3351.0,3350.8,0.47862785]
[1642075848664,1.57219256,3351.0,3350.9,2.71314765]
[1642075849601,1.57219256,3351.0,3350.9,0.47862785]
[1642075849803,0.0022737,3351.0,3350.9,0.47862785]
[1642075850006,0.0022737,3351.0,3350.9,1.22461785]
[1642075850205,0.0022737,3351.0,3350.9,7.57461785]
[1642075850605,0.40971415,3351.5,3350.9,1.22461785]
[1642075850808,0.40971415,3351.5,3351.1,1.99961979]
[1642075851008,0.00227369,3351.4,3351.2,0.47862785]
[1642075851209,0.00227369,3351.4,3351.3,1.22443785]
[1642075851409,0.70971415,3351.5,3351.3,1.22443785]
[1642075851410,0.40971415,3351.5,3351.3,1.22443785]
[1642075851608,3.7581,3352.3,3351.3,1.22443785]
[1642075852012,0.00625265,3352.1,3351.3,3.45176341]
[1642075852310,1.31834284,3351.8,3351.3,3.45176341]
[1642075852709,0.00397896,3351.7,3351.3,3.45176341]
[1642075853112,0.00341054,3351.6,3351.3,3.45176341]
[1642075853366,0.74926654,3351.6,3351.5,2.70595341]
[1642075853555,0.745856,3351.6,3351.5,2.70595341]
[1642075853755,0.74926654,3351.6,3351.5,2.70595341]
[1642075854757,0.74926654,3351.6,3351.5,0.47862785]
[1642075855457,0.00341054,3351.6,3351.5,0.47862785]
[1642075855658,0.00341054,3351.6,3351.4,0.47862785]
[1642075855860,0.00341054,3351.6,3351.5,1.22442785]
[1642075856061,0.3,3351.7,3351.5,1.22442785]
[1642075856463,1.0,3352.1,3351.9,2.48089969]
[1642075856663,1.0,3352.1,3352.0,0.17862785]
[1642075856863,2.47887375,3352.1,3352.0,0.92440785]
[1642075857707,2.47887375,3352.1,3352.0,0.17862785]
[1642075858110,2.2373554,3352.9,3352.2,6.72630832]
[1642075858419,17.53,3354.0,3352.9,0.03203416]
[1642075858608,17.53,3354.0,3353.0,0.17862785]
[1642075859010,17.96834799,3354.0,3353.1,0.17862785]
[1642075859210,1.52466901,3353.8,3353.1,0.17862785]
[1642075859610,0.01534743,3353.7,3353.1,0.17862785]
[1642075860012,0.01477901,3353.6,3353.1,0.17862785]
[1642075860511,0.01421058,3353.5,3353.1,0.17862785]
[1642075860963,0.01364216,3353.4,3353.1,0.17862785]
[1642075861361,0.01307373,3353.3,3353.1,0.17862785]
[1642075861763,0.01250531,3353.2,3353.1,0.17862785]
[1642075864065,0.01250531,3353.2,3353.1,1.65331615]
[1642075865110,0.01250531,3353.2,3353.1,4.21417949]
[1642075865913,0.01250531,3353.2,3353.1,4.51417949]
[1642075866514,0.01250531,3353.2,3353.1,3.03949119]
[1642075866716,0.01250531,3353.2,3353.1,5.00732003]
[1642075866915,0.01250531,3353.2,3353.1,5.05494839]
[1642075867916,0.01250531,3353.2,3353.1,4.95216031]
[1642075868115,0.01250531,3353.2,3353.1,3.03949119]
[1642075868360,0.01250531,3353.2,3353.1,4.96871772]
[1642075868758,0.43753727,3354.3,3353.3,0.17862785]
[1642075868956,0.43753727,3354.3,3353.9,0.17862785]
[1642075869156,0.00568424,3354.2,3353.9,0.17862785]
[1642075869556,0.00511581,3354.1,3353.9,0.17862785]
[1642075869960,0.00454739,3354.0,3353.9,0.17862785]
[1642075874912,0.00454739,3354.0,3353.9,2.82862785]
[1642075875112,0.00454739,3354.0,3353.9,0.17862785]
[1642075875963,0.00454739,3354.0,3353.9,2.87862785]
[1642075876566,0.00454739,3354.0,3353.9,4.75632569]
[1642075876762,0.00454739,3354.0,3353.9,2.87862785]
[1642075876963,0.00454739,3354.0,3353.9,0.17862785]
[1642075877962,1.0,3354.9,3354.1,0.17862785]
[1642075878364,0.00454739,3354.8,3354.1,0.17862785]
[1642075878562,0.00454739,3354.8,3354.1,0.92380785]
[1642075878763,0.00397896,3354.7,3354.1,2.35661527]
[1642075878964,0.00397896,3354.7,3354.1,0.92380785]
[1642075879166,0.00341054,3354.6,3354.1,0.92380785]
[1642075879364,0.00341054,3354.6,3354.1,0.17862785]
[1642075879611,0.00284212,3354.5,3354.1,0.17862785]
[1642075880016,0.00227369,3354.4,3354.1,0.17862785]
[1642075880416,0.00170527,3354.3,3354.1,0.17862785]
[1642075880817,0.00113685,3354.2,3354.1,0.17862785]
[1642075881920,0.00113685,3354.2,3354.1,5.74709659]
[1642075882118,0.00113685,3354.2,3354.1,3.87862785]
[1642075882719,0.00113685,3354.2,3354.1,0.17862785]
[1642075883757,0.00113685,3354.2,3354.1,5.62862785]
[1642075883958,0.00113685,3354.2,3354.1,7.61416963]
[1642075884362,0.00113685,3354.2,3354.1,2.90930963]
[1642075886361,0.00113685,3354.2,3354.1,5.46963346]
[1642075887105,0.00113685,3354.2,3354.1,3.48409168]
[1642075887709,0.00113685,3354.2,3354.1,5.34702604]
[1642075889114,0.00113685,3354.2,3354.1,3.48409168]
[1642075889315,0.00113685,3354.2,3354.1,5.37262081]
[1642075889716,1.49699652,3355.1,3354.3,0.17862785]
[1642075889917,1.79699652,3355.1,3354.3,0.17862785]
[1642075890119,0.00454738,3355.0,3354.3,0.17862785]
[1642075890517,0.00397896,3354.9,3354.3,0.17862785]
[1642075890968,0.00341054,3354.8,3354.3,0.17862785]
[1642075891368,0.00284211,3354.7,3354.3,0.17862785]
[1642075891769,0.00227369,3354.6,3354.5,0.17862785]
[1642075892771,0.00227369,3354.6,3354.5,2.73895168]
[1642075894071,0.3,3355.0,3354.5,2.73895168]
[1642075894369,0.00170527,3354.9,3354.5,2.73895168]
[1642075894822,0.00113685,3354.8,3354.5,2.73895168]
[1642075895822,0.00113685,3354.8,3354.7,0.17862785]
[1642075897022,18.660607,3354.8,3354.7,0.17862785]
[1642075897225,18.67356923,3354.8,3354.7,2.73895168]
[1642075897427,19.97356923,3354.8,3354.7,2.73895168]
[1642075898864,20.39956923,3354.8,3354.7,2.73895168]
[1642075899262,20.39956923,3354.8,3353.7,1.4746883]
[1642075899263,1.23073605,3353.9,3353.7,1.4746883]
[1642075899466,1.16750723,3353.8,3353.7,1.4746883]
[1642075899665,19.49309793,3353.8,3353.7,1.4746883]
[1642075899867,19.44309793,3353.8,3353.7,1.4746883]
[1642075900069,20.44309793,3353.8,3353.7,1.4746883]
[1642075900265,20.48173859,3353.8,3353.7,1.4746883]
[1642075901066,21.6184914,3353.8,3353.7,1.4746883]
[1642075901268,21.9184914,3353.8,3353.7,1.4746883]
[1642075901469,21.9184914,3353.8,3353.3,1.4746883]
[1642075901667,19.0212078,3353.6,3353.3,1.4746883]
[1642075901866,19.0212078,3353.6,3353.4,0.00682108]
[1642075902112,18.83,3353.5,3353.4,0.00682108]
[1642075903115,18.83,3353.5,3353.3,0.00738951]
[1642075903814,18.83,3353.5,3353.4,1.4746883]
[1642075904920,18.83,3353.5,3353.3,1.48207781]
[1642075906775,18.83,3353.5,3353.3,0.00738951]
[1642075907173,18.83,3353.5,3353.2,0.00795793]
[1642075908575,18.83,3353.5,3353.2,0.75345793]
[1642075908873,0.7455445,3353.4,3353.3,0.00738951]
[1642075910109,0.7455445,3353.4,3353.2,0.00795793]
[1642075911019,0.7455445,3353.4,3353.2,0.75347793]
[1642075911416,0.7455445,3353.4,3353.3,0.00738951]
[1642075911815,19.57554,3353.5,3353.3,0.00738951]
[1642075912816,19.57554,3353.5,3353.2,0.00795793]
[1642075913019,0.7455809,3353.4,3353.2,0.00795793]
[1642075914579,0.7455809,3353.4,3353.1,0.00852635]
[1642075914780,1.24990108,3353.2,3353.1,0.00852635]
[1642075917417,2.5080271,3353.2,3353.0,0.00909478]
[1642075917617,3.2536791,3353.2,3353.0,0.00909478]
[1642075917818,4.7449891,3353.2,3353.0,0.00909478]
[1642075919119,22.2749891,3353.2,3353.0,0.00909478]
[1642075919318,22.2749891,3353.2,3352.8,1.4746883]
[1642075919319,22.2749891,3353.2,3352.9,0.0096632]
[1642075920019,22.2749891,3353.2,3353.1,2.56130358]
[1642075920319,22.2749891,3353.2,3353.1,2.56982993]
[1642075920320,21.01686308,3353.2,3353.1,2.56982993]
[1642075920521,22.01686308,3353.2,3353.1,2.56982993]
[1642075920970,22.01686308,3353.2,3353.1,0.00852635]
[1642075921366,23.12056275,3353.2,3353.1,0.00852635]
[1642075921565,22.01686308,3353.2,3353.1,0.00852635]
[1642075921766,22.01686308,3353.2,3353.1,2.56982993]
[1642075923572,22.05601863,3353.2,3353.1,2.56982993]
[1642075924173,23.38238274,3353.2,3353.1,2.56982993]
[1642075924470,24.12819274,3353.2,3353.1,2.56982993]
[1642075925113,24.55419274,3353.2,3353.1,2.56982993]
[1642075925512,24.85419274,3353.2,3353.1,2.56982993]
[1642075925716,24.85419274,3353.2,3352.2,1.4746883]
[1642075925717,0.74595,3352.8,3352.2,1.4746883]
[1642075925914,1.4919504,3352.5,3352.2,1.4746883]
[1642075926217,19.59435643,3352.4,3352.3,0.00454739]
[1642075926414,20.73568916,3352.4,3352.3,0.00454739]
[1642075926613,23.07423789,3352.4,3352.3,0.00454739]
[1642075927018,21.00988146,3352.4,3352.3,0.00454739]
[1642075927213,21.79068886,3352.4,3352.3,0.00454739]
[1642075928114,21.79068886,3352.4,3351.7,0.00795793]
[1642075928397,2.2378963,3352.2,3351.7,0.00795793]
[1642075928791,19.0219263,3352.2,3351.7,0.00795793]
[1642075929191,1.0,3352.1,3351.6,0.00852635]
[1642075929393,1.74592,3352.1,3351.6,0.00852635]
[1642075929591,17.53,3352.0,3351.6,0.00852635]
[1642075929791,1.74592,3352.1,3351.6,0.00852635]
[1642075929992,1.25834132,3351.7,3351.6,0.00852635]
[1642075930192,1.2412,3352.4,3351.6,0.00852635]
[1642075930394,5.7179,3352.9,3351.6,0.00852635]
[1642075930593,5.7179,3352.9,3351.6,0.75439635]
[1642075930792,4.814,3352.8,3351.6,0.75439635]
[1642075930991,4.814,3352.8,3351.7,0.00795793]
[1642075931402,1.48302759,3352.6,3351.6,0.00852635]
[1642075931593,1.48302759,3352.6,3352.2,0.74566]
[1642075932217,1.48302759,3352.6,3352.0,1.4746883]
[1642075932619,22.29787607,3352.6,3352.1,0.00568424]
[1642075932917,1.49151,3352.7,3352.1,0.00568424]
[1642075933118,1.53352971,3352.4,3352.1,0.00568424]
[1642075934121,1.83352971,3352.4,3352.0,0.00625266]
[1642075934319,2.57928971,3352.4,3352.0,0.00625266]
[1642075935321,2.57928971,3352.4,3352.1,0.74574]
[1642075935623,2.57928971,3352.4,3352.2,0.00511581]
[1642075936269,2.57928971,3352.4,3352.1,0.00568424]
[1642075936573,3.32507191,3352.4,3352.1,0.00568424]
[1642075937271,3.32507191,3352.4,3352.0,0.00625266]
[1642075938671,3.32507191,3352.4,3351.9,1.48150938]
[1642075939074,3.32507191,3352.4,3352.0,0.00625266]
[1642075939274,1.4916119,3352.3,3352.0,0.75202266]
[1642075939726,1.4916119,3352.3,3352.1,0.00568424]
[1642075940124,2.4916119,3352.3,3352.0,0.00625266]
[1642075943475,2.4916119,3352.3,3351.9,0.00682108]
[1642075943674,0.74585,3352.1,3351.9,0.00682108]
[1642075944678,0.74585,3352.1,3351.9,1.48150938]
[1642075945076,0.74585,3352.1,3352.0,0.00625266]
[1642075946079,0.74585,3352.1,3352.0,2.56814113]
[1642075946978,0.74585,3352.1,3352.0,4.04282943]
[1642075947618,0.74585,3352.1,3352.0,2.56814113]
[1642075948820,17.53,3352.2,3352.1,1.4917]
[1642075949221,18.53,3352.2,3352.1,1.49738424]
[1642075950221,19.27597,3352.2,3352.1,1.49738424]
[1642075950421,19.27597,3352.2,3352.1,4.05927271]
[1642075952672,1.74597,3352.2,3352.1,4.05927271]
[1642075952872,1.0,3352.2,3352.1,4.05927271]
[1642075953673,3.2376132,3352.3,3352.1,4.05927271]
[1642075954074,3.2376132,3352.3,3352.2,0.00511581]
[1642075954622,5.20235678,3352.3,3352.2,0.00511581]
[1642075954821,3.2376132,3352.3,3352.2,0.00511581]
[1642075955022,3.2376132,3352.3,3352.2,2.56700428]
[1642075956324,20.7676132,3352.3,3352.2,2.56700428]
[1642075956524,3.2376132,3352.3,3352.2,2.56700428]
[1642075959275,2.2374714,3352.4,3352.2,2.56700428]
[1642075959472,1.49147,3352.7,3352.2,3.54540428]
[1642075959674,0.45734954,3352.8,3352.3,0.04566093]
[1642075959873,0.45734954,3352.8,3352.2,2.56700428]
[1642075960072,0.45734954,3352.8,3352.4,0.00397897]
[1642075960272,1.91807966,3352.8,3352.4,0.00397897]
[1642075960674,1.91807966,3352.8,3352.4,4.04055574]
[1642075960872,3.40941506,3352.8,3352.4,4.04055574]
[1642075961078,1.20304494,3352.8,3352.5,0.00341054]
[1642075961676,1.50304494,3352.8,3352.5,0.00341054]
[1642075962120,0.7457,3352.7,3352.5,0.74913054]
[1642075962424,0.7457,3352.7,3352.6,0.00284212]
[1642075962619,1.50304494,3352.8,3352.6,0.00284212]
[1642075963219,1.50304494,3352.8,3352.6,4.03941889]
[1642075963620,1.50304494,3352.8,3352.7,0.0022737]
[1642075964624,1.50304494,3352.8,3352.6,0.00284212]
[1642075965024,1.50304494,3352.8,3352.6,2.56473059]
[1642075965421,1.50304494,3352.8,3352.7,0.0022737]
[1642075965876,2.24875494,3352.8,3352.6,2.31416217]
[1642075966271,2.24875494,3352.8,3352.5,2.2204083]
[1642075966475,2.24875494,3352.8,3352.6,1.4746883]
[1642075966873,2.24875494,3352.8,3352.6,2.2203683]
[1642075966874,1.7914054,3352.8,3352.6,2.2203683]
[1642075967075,1.04571,3352.8,3352.6,2.2203683]
[1642075968477,1.04571,3352.8,3352.4,2.22732556]
[1642075968677,1.49141,3352.9,3352.8,2.09141999]
[1642075968877,1.49141,3352.9,3352.6,2.22732556]
[1642075969079,1.49254685,3352.9,3352.6,2.22732556]
[1642075969725,2.49254685,3352.9,3352.6,1.49229385]
[1642075969925,1.49254685,3352.9,3352.6,1.49229385]
[1642075970125,2.79254685,3352.9,3352.6,1.49229385]
[1642075970331,1.4914313,3352.8,3352.6,1.49229385]
[1642075970529,1.4914313,3352.8,3352.5,1.49343069]
[1642075971331,1.4914313,3352.8,3352.6,1.49229385]
[1642075976482,1.4914313,3352.8,3352.6,2.23797385]
[1642075976883,1.4914313,3352.8,3352.6,0.74568]
[1642075977525,0.74571,3352.8,3352.6,1.60498]
[1642075977820,1.18637741,3352.9,3352.6,1.60498]
[1642075978022,1.48637741,3352.9,3352.6,3.09191032]
[1642075978222,0.74079741,3352.9,3352.6,3.09191032]
[1642075978423,0.30113685,3352.9,3352.6,3.09191032]
[1642075978621,0.00113685,3352.9,3352.6,3.09191032]
[1642075978823,0.30113685,3352.9,3352.6,3.09191032]
[1642075979023,0.30113685,3352.9,3352.7,0.74552]
[1642075979224,0.00113685,3352.9,3352.7,0.74552]
[1642075979723,0.00113685,3352.9,3352.8,1.4741113]
[1642075979923,0.00113685,3352.9,3352.8,3.70143686]
[1642075980997,0.00113685,3352.9,3352.8,1.4741113]
[1642075983595,0.00113685,3352.9,3352.8,5.0741113]
[1642075983803,0.74549,3353.4,3353.2,0.04629761]
[1642075984002,0.4504898,3353.8,3353.2,0.7455]
[1642075984197,0.00227369,3353.3,3353.2,1.0455]
[1642075984630,0.00227369,3353.3,3353.2,6.84057925]
[1642075985930,0.00227369,3353.3,3353.2,8.57502693]
[1642075986130,1.11518245,3354.3,3353.3,0.00454738]